Cogmind - Beta 15 @@@ ROGUE MODE // 2025.10.20 @ 00:29:38 Player: shapeshifter Result: Destroyed by Y-45 Defender with Beam Rifle Performance ------------- Evolutions (2) 1000 Regions Visited (7) 1400 Robots Destroyed (98) 490 Value Destroyed (4200) 4200 Prototype IDs (25) 500 Alien Tech Used (0) 0 Bonus (1112) 1112 TOTAL SCORE: 8702 Bonus ------- High Alert Combat Kills 509 Follower Combat Kills 103 Entered Garrisons 200 Aligned with FarCom 300 Cogmind --------- Core Integrity 0/550 Matter 300/300 Energy 154/160 System Corruption 7% Temperature Cool (12) Movement Treading (160) Location -8/Materials Parts ------- > --- POWER (1) -------- Light Nuclear Core > --- PROPULSION (3) --- Light Treads Light Treads Light Treads > --- UTILITY (4) ------ Improved Heat Sink Large Storage Unit Advanced Targeting Computer Hardened Medium Armor Plating > --- WEAPON (3) ------- Plasma Cannon Plasma Cannon Plasma Cannon > --- INVENTORY (15) --- Advanced Heat Sink Huge Storage Unit High-capacity Matter Pod (200) 0b10 Alert Chip Improved Salvage Targeting Computer Improved Salvage Targeting Computer Improved Salvage Targeting Computer Energy Filter Authchip [R/Combat] Authchip [Propulsion] Skeleton Box Latent Energy Streamer Plasma Cannon Improved Assault Rifle Plasma Cutter Peak State ------------ > --- POWER ------------ Light Nuclear Core > --- PROPULSION ------- Light Treads Light Treads Light Treads > --- UTILITY ---------- Improved Heat Sink Large Storage Unit Advanced Targeting Computer Hardened Medium Armor Plating > --- WEAPON ----------- Plasma Cannon Plasma Cannon Plasma Cannon > --- INVENTORY -------- Advanced Heat Sink Huge Storage Unit High-capacity Matter Pod 0b10 Alert Chip Improved Salvage Targeting Computer Improved Salvage Targeting Computer Improved Salvage Targeting Computer Energy Filter Authchip [R/Combat] Authchip [Propulsion] Skeleton Box Latent Energy Streamer Plasma Cannon Improved Assault Rifle Plasma Cutter [Rating: 34] Favorites ----------- Power Heavy Ion Engine Engine Heavy Ion Engine Power Core Light Nuclear Core Propulsion Light Treads Treads Light Treads Leg Aluminum Leg Wheel Wheel Utility Large Storage Unit Device Structural Scanner Storage Large Storage Unit Processor Advanced Targeting Computer Hackware Hacking Suite Protection Hardened Medium Armor Plating Weapon Heavy Assault Rifle Energy Gun Small Laser Energy Cannon Plasma Cannon Ballistic Gun Heavy Assault Rifle Launcher Mini Grenade Launcher Build | -11 -10 -10 -10 -9 -8 -8 -8 ------- Run | Yrd Mat Min Exi Min Mat Gar Mat Slots Evolved 4 | . . . . . 4 . . Power . | . . . . . . . . Propulsion 1 | . . . . . 1 . . Utility 2 | . . . . . 2 . . Weapon 1 | . . . . . 1 . . Parts Attached 72 | 8 8 2 . . 23 30 1 Power 10 | 1 2 . . . 2 4 1 Engine 6 | 1 2 . . . 1 2 . Core 4 | . . . . . 1 2 1 Reactor . | . . . . . . . . Propulsion 27 | 3 2 . . . 8 14 . Treads 20 | 2 1 . . . 8 9 . Leg 5 | . . . . . . 5 . Wheel 2 | 1 1 . . . . . . Hover . | . . . . . . . . Flight . | . . . . . . . . Utility 15 | 2 2 . . . 7 4 . Device 4 | 1 . . . . 2 1 . Storage 3 | 1 1 . . . 1 . . Processor 1 | . . . . . 1 . . Hackware 1 | . 1 . . . . . . Protection 6 | . . . . . 3 3 . Artifact . | . . . . . . . . Weapon 20 | 2 2 2 . . 6 8 . Energy Gun 4 | 1 1 . . . 2 . . Energy Cannon 5 | . . 1 . . . 4 . Ballistic Gun 10 | 1 1 . . . 4 4 . Ballistic Cannon . | . . . . . . . . Launcher 1 | . . 1 . . . . . Special Weapon . | . . . . . . . . Impact Weapon . | . . . . . . . . Slashing Weapon . | . . . . . . . . Piercing Weapon . | . . . . . . . . Special Melee Weapon . | . . . . . . . . Unidentified Prototypes 2 | . 1 . . . 1 . . Parts Lost 19 | . 2 . . . 3 14 . Power 4 | . 1 . . . . 3 . Propulsion 6 | . 1 . . . 1 4 . Utility 3 | . . . . . 1 2 . Weapon 6 | . . . . . 1 5 . Highest Loss Streak 6 | . 1 . . . 1 6 . To Critical Strikes . | . . . . . . . . Average Backups 12 | 2 7 8 12 15 14 14 13 Power . | . . . 2 3 . . . Propulsion 1 | 1 1 . . . . 1 1 Utility 6 | . 3 5 7 8 8 6 7 Weapon 3 | . 1 2 2 3 3 4 2 Tool/Special . | . . . . . . . . Unused Backups 32 | . 4 . 1 . 10 2 15 Power 5 | . 2 . . . 3 . . Propulsion 1 | . . . . . . . 1 Utility 20 | . 1 . 1 . 6 2 10 Weapon 4 | . 1 . . . 1 . 2 Tool/Special 2 | . . . . . . . 2 Average Slot Usage (%) 95 | . 98 100 100 100 96 91 100 Engine 7 | . 13 14 14 14 6 1 7 Core 3 | . . . . . 2 7 1 Treads 19 | . 23 . . . 24 18 27 Leg 1 | . . . . . . 5 . Wheel 4 | . 3 28 28 28 1 . . Device 4 | . . . . . 8 6 9 Storage 10 | . 14 14 14 14 9 9 9 Processor 5 | . . . . . 6 9 9 Hackware 5 | . 13 14 14 14 2 . . Protection 6 | . . . . . 8 11 9 Energy Gun 5 | . 18 12 . . 2 . . Energy Cannon 3 | . . . 14 14 3 4 27 Ballistic Gun 15 | . 8 14 14 14 20 18 . Peak Build Rating 34 | 7 12 13 15 15 31 33 34 Average Rating 20 | 4 11 11 13 15 24 26 31 On Entrance 15 | . 7 11 12 15 15 31 30 Naked Turns . | . . . . . . . . Heaviest Build 55 | 12 30 32 32 32 47 55 55 Greatest Support 60 | 40 40 20 20 20 60 60 60 Greatest Overweight (x) 11 | 2 1 1 1 1 1 11 . Average Overweight (x) . | . . 1 1 1 . . . Largest Inventory Capacity 15 | 8 15 15 15 15 15 15 15 Average Capacity 14 | 7 11 15 15 15 15 15 15 Most Carried 15 | 5 10 9 15 15 15 15 15 Average Carried 12 | 3 7 8 12 15 14 14 13 Final Capacity 15 | 8 15 15 15 15 15 15 15 Final Carried 15 | 3 6 8 15 15 15 12 15 Class Distribution -------------------- 41% | Scavenger-Skirmisher 39% | Mutant 10% | Scavenger-Mutant 8% | Scavenger-Tank Dominant Class ---------------- Mutant | -10/Materials Mutant | -10/Mines Mutant | -10/Exiles Mutant | -9/Mines Scavenger-Skirmisher | -8/Materials Scavenger-Skirmisher | -8/Garrison Scavenger-Skirmisher | -8/Materials Resources | -11 -10 -10 -10 -9 -8 -8 -8 ----------- Run | Yrd Mat Min Exi Min Mat Gar Mat Matter Collected 3065 | 227 699 4 204 . 861 1050 20 Remotely . | . . . . . . . . Salvage Created 3773 | 12 646 25 . . 1501 1524 65 Parts 216 | 3 41 . . . 91 80 1 Haulers Intercepted 4 | . 2 . . . 2 . . Recyclers Shooed 1 | . . . . . 1 . . Parts Field Recycled . | . . . . . . . . Retrieved Matter . | . . . . . . . . Parts Self-Destructed . | . . . . . . . . Prevented . | . . . . . . . . Kills | -11 -10 -10 -10 -9 -8 -8 -8 ------- Run | Yrd Mat Min Exi Min Mat Gar Mat Combat Hostiles Destroyed 84 | . 17 2 . . 28 36 1 Guns 72 | . 17 1 . . 22 32 . Cannons 11 | . . . . . 6 4 1 AOE 1 | . . 1 . . . . . Classes Destroyed 13 | 1 7 1 . . 3 1 . Worker 2 | . 1 . . . 1 . . Tunneler 1 | 1 . . . . . . . Hauler 4 | . 2 . . . 2 . . Recycler 2 | . 1 . . . 1 . . Operator 1 | . 1 . . . . . . Watcher 6 | . 1 . . . 5 . . Swarmer 27 | . 9 . . . 7 11 . Grunt 30 | . 8 . . . 9 12 1 Duelist 5 | . . . . . 1 4 . Sentry 16 | . . . . . 9 7 . Specialist 2 | . . . . . . 2 . Hunter 2 | . . . . . 2 . . Assembled 2 | . . 2 . . . . . Best Kill Streak 5 | 1 4 1 . . 5 5 1 Combat Bots Only 5 | . 4 1 . . 4 5 1 Max Kills in Single Turn 2 | 1 1 1 . . 2 1 1 Gunslinging 1 | . . . . . 1 . . Exploded 1 | . . 1 . . . . . Melee . | . . . . . . . . Uniques/NPCs Destroyed . | . . . . . . . . Combat | -11 -10 -10 -10 -9 -8 -8 -8 -------- Run | Yrd Mat Min Exi Min Mat Gar Mat Hostile Shots Fired 521 | . 111 5 . . 142 258 5 Missed 150 | . 32 . . . 37 78 3 Hits 371 | . 79 5 . . 105 180 2 Melee 10 | . . . . . . 10 . Projectile 361 | . 79 5 . . 105 170 2 Critical Strikes 18 | . 1 1 . . 5 11 . Damage Taken 5028 | . 858 95 . . 1479 2547 49 Core 760 | . 181 22 . . 201 342 14 Absorbed by Shields . | . . . . . . . . Ignored by Resistances 124 | . . . . . . 124 . Core Remaining (%) 59 | 100 . . . 18 . . . Volleys Fired 327 | 2 89 12 . . 106 115 3 Largest 3 | 2 2 2 . . 3 3 3 Hottest 240 | 60 80 60 . . 123 240 240 Shots Fired 762 | 4 175 18 . . 271 285 9 Gun 668 | 4 175 12 . . 221 256 . Cannon 88 | . . . . . 50 29 9 Launcher 6 | . . 6 . . . . . Special . | . . . . . . . . Kinetic 539 | 2 59 6 . . 216 256 . Thermal 215 | 2 116 6 . . 55 27 9 Explosive 6 | . . 6 . . . . . Electromagnetic 2 | . . . . . . 2 . Robot Hit Streak 20 | 2 8 4 . . 13 20 14 Robot Miss Streak 6 | 1 5 1 . . 6 3 1 Penetration Max 1 | . . . . . 1 1 . Secondary Targets 13 | . 3 . . . 5 5 . Max Gunslinging Chain 1 | . 1 . . . 1 1 . Shots Hit Robots 476 | 3 100 5 . . 176 186 6 Core Hits 188 | 1 38 4 . . 75 68 2 Critical Kills 2 | . . . . . 1 1 . Critical Parts Destroyed 4 | . . . . . 3 1 . Critical Strikes 6 | . . . . . 4 2 . Destroy 6 | . . . . . 4 2 . Melee Attacks . | . . . . . . . . Impact . | . . . . . . . . Slashing . | . . . . . . . . Piercing . | . . . . . . . . Sneak Attacks . | . . . . . . . . Combat Hostiles . | . . . . . . . . Follow-up Attacks . | . . . . . . . . Damage Inflicted 6936 | 37 1187 69 . . 2712 2775 156 Guns 5775 | 37 1187 49 . . 2084 2418 . Cannons 1141 | . . . . . 628 357 156 Explosions 20 | . . 20 . . . . . Melee . | . . . . . . . . Ramming . | . . . . . . . . Kinetic 4919 | 14 398 27 . . 2062 2418 . Thermal 1997 | 23 789 22 . . 650 357 156 Explosive 20 | . . 20 . . . . . Electromagnetic . | . . . . . . . . Impact . | . . . . . . . . Slashing . | . . . . . . . . Piercing . | . . . . . . . . Highest Corruption 7 | . . . . . 2 7 7 Average Corruption 3 | . . . . . 2 3 7 Corruption Purged . | . . . . . . . . Corruption Blocked . | . . . . . . . . Effects 76 | . . . . . 22 51 3 Message Errors 17 | . . . . . 6 10 1 Matter Fused 16 | . . . . . 3 12 1 Heat Flow Errors 16 | . . . . . 5 11 . Energy Discharges 8 | . . . . . 4 4 . Parts Fused 1 | . . . . . . 1 . Data Loss (minor) 11 | . . . . . 3 7 1 Misfires 4 | . . . . . . 4 . Alerts 2 | . . . . . 1 1 . Weapon Failures 1 | . . . . . . 1 . Overload Shots . | . . . . . . . . Overflow Damage 6 | . . . . . . 6 . Projectiles 6 | . . . . . . 6 . Explosions . | . . . . . . . . Melee . | . . . . . . . . Knockbacks . | . . . . . . . . Impact . | . . . . . . . . Kinetic . | . . . . . . . . Secondary . | . . . . . . . . Self-Inflicted Damage 98 | . . 35 . . . 63 . Shots 2 | . . 1 . . . 1 . Rammed . | . . . . . . . . Targets Rammed . | . . . . . . . . Kicked . | . . . . . . . . Crushed . | . . . . . . . . Highest Temperature 361 | . 222 50 . . 284 361 239 Average Temperature 77 | . 48 18 . . 64 109 137 Received Heat Transfer 1815 | . 258 . . . 549 981 27 Effects 4 | . 1 . . . . 3 . Shutdowns 1 | . . . . . . 1 . Energy Bleed 1 | . 1 . . . . . . Interference 1 | . . . . . . 1 . Short Circuit 1 | . . . . . . 1 . Siege Activations . | . . . . . . . . Martial Activations . | . . . . . . . . Shielding Activations . | . . . . . . . . Robots Disrupted . | . . . . . . . . Combat Hostiles . | . . . . . . . . Robots Corrupted . | . . . . . . . . Combat Hostiles . | . . . . . . . . Parts Fried . | . . . . . . . . Impact Corruptions . | . . . . . . . . Robots Melted . | . . . . . . . . Combat Hostiles . | . . . . . . . . Parts Melted 8 | . 4 . . . 1 1 2 Heat Transferred 4282 | 50 1800 50 . . 1382 700 300 Parts Sabotaged . | . . . . . . . . Parts Stolen . | . . . . . . . . Parts Stripped . | . . . . . . . . Power Chain Reactions . | . . . . . . . . Latent Energy Used 265 | . . . . . . 265 . LE Corruption 5 | . . . . . . 5 . Alert | -11 -10 -10 -10 -9 -8 -8 -8 ------- Run | Yrd Mat Min Exi Min Mat Gar Mat Maximum Alert Level 5 | . . . . . 1 5 3 Low Security (%) 53 | 100 100 100 . 100 73 . . Level 1 11 | . . . . . 26 9 . Level 2 6 | . . . . . . 17 . Level 3 13 | . . . . . . 31 100 Level 4 11 | . . . . . . 31 . Level 5 3 | . . . . . . 9 . High Security . | . . . . . . . . Max Security . | . . . . . . . . Peak Influence 1957 | 5 195 67 . . 350 1957 999 Initial 953 | . . 67 . . . 225 953 Average 433 | . 61 24 . . 109 990 970 Influence Increases 3414 | 5 524 24 . . 903 1872 86 Destroy 0b10 Robot/C 1780 | . 340 . . . 560 820 60 Destroy 0b10 Robot/NC 80 | 5 30 . . . 45 . . Destroy Leader 290 | . 66 . . . 174 30 20 Allied During Kill 20 | . . . . . . 15 5 Successful Hack 63 | . 26 . . . 30 7 . Select Force Hacks 30 | . 30 . . . . . . Disable Machine 60 | . . . . . 45 15 . Anti-Garrison Action 850 | . . . . . . 850 . Destroy Structure 121 | . 2 24 . . 4 90 1 Partial Spotted 15 | . . . . . 15 . . Lose Combat Pursuer 105 | . 30 . . . 30 45 . Influence Decreases 2455 | 5 349 198 1 . 556 262 1084 Entered New Map 1235 | . . 108 1 . . 122 1004 Time Decay 1010 | 5 329 90 . . 526 . 60 Lost Part 190 | . 20 . . . 30 140 . Lost Ally 20 | . . . . . . . 20 Squads Dispatched 7 | . 2 . . . 5 . . Investigation 4 | . 1 . . . 3 . . Extermination . | . . . . . . . . Reinforcement 3 | . 1 . . . 2 . . Assault . | . . . . . . . . Garrison . | . . . . . . . . Intercept . | . . . . . . . . Searches Triggered . | . . . . . . . . Construction Impeded 1 | . . . . . 1 . . Haulers Reinforced . | . . . . . . . . Active Scanning Responses . | . . . . . . . . Cargo Convoy Interrupts . | . . . . . . . . Stealth | -11 -10 -10 -10 -9 -8 -8 -8 --------- Run | Yrd Mat Min Exi Min Mat Gar Mat Distress Signals 3 | . 1 . . . 2 . . Communications Jammed . | . . . . . . . . Distress Signals . | . . . . . . . . Times Spotted 117 | . 28 2 . . 44 39 4 Peak Tracking Total 6 | . 4 2 . . 4 6 3 Tactical Retreats 6 | . 1 1 . . 2 2 . Traps | -11 -10 -10 -10 -9 -8 -8 -8 ------- Run | Yrd Mat Min Exi Min Mat Gar Mat Traps Triggered 14 | . 4 . . . 4 6 . Indirectly 1 | . . . . . . 1 . Trap Hack Attempts . | . . . . . . . . Triggered . | . . . . . . . . Disarmed . | . . . . . . . . Reprogrammed . | . . . . . . . . Reused . | . . . . . . . . Traps Extracted . | . . . . . . . . Installed . | . . . . . . . . Triggered . | . . . . . . . . Machines | -11 -10 -10 -10 -9 -8 -8 -8 ---------- Run | Yrd Mat Min Exi Min Mat Gar Mat Machines Disabled 11 | . . . . . 3 8 . Max in Single Turn 2 | . . . . . 1 2 . Garrison Relay 5 | . . . . . . 5 . Phase Generator 1 | . . . . . . 1 . Machines Repaired . | . . . . . . . . Machines Dismantled . | . . . . . . . . Machines Sabotaged . | . . . . . . . . Overloaded Fab Kills . | . . . . . . . . Hacking | -11 -10 -10 -10 -9 -8 -8 -8 --------- Run | Yrd Mat Min Exi Min Mat Gar Mat Machines Accessed 22 | . 8 . 2 . 10 2 . Terminals 16 | . 6 . . . 8 2 . Fabricators . | . . . . . . . . Repair Stations . | . . . . . . . . Recycling Units 3 | . 2 . . . 1 . . Scanalyzers . | . . . . . . . . Garrison Access 1 | . . . . . 1 . . Total Hacks 52 | . 22 . 2 . 25 3 . Successful 30 | . 14 . 2 . 13 1 . Failed 22 | . 8 . . . 12 2 . Catastrophic 3 | . . . . . 1 2 . Database Lockouts . | . . . . . . . . Manual 33 | . 12 . 1 . 20 . . Terminals 43 | . 18 . . . 22 3 . Fabricators . | . . . . . . . . Repair Stations . | . . . . . . . . Recycling Units 5 | . 4 . . . 1 . . Scanalyzers . | . . . . . . . . Garrison Access 2 | . . . . . 2 . . Terminal Hacks 9 | . 4 . 2 . 2 1 . Record 1 | . . . 1 . . . . Open Door 1 | . . . . . . 1 . Branch Access Points 1 | . 1 . . . . . . Maintenance Status 1 | . . . . . 1 . . Hauler Manifests 1 | . 1 . . . . . . Zone Layout 3 | . 2 . . . 1 . . Proto ID Catalog 1 | . . . 1 . . . . Fabricator Hacks . | . . . . . . . . Repair Station Hacks . | . . . . . . . . Recycling Unit Hacks 3 | . 2 . . . 1 . . Retrieve Components 3 | . 2 . . . 1 . . Scanalyzer . | . . . . . . . . Garrison Access Hacks 1 | . . . . . 1 . . Unlock Access 1 | . . . . . 1 . . Unauthorized Hacks 17 | . 8 . . . 9 . . Terminals 16 | . 7 . . . 9 . . Botnet 5 | . 2 . . . 3 . . Skim 11 | . 5 . . . 6 . . Fabricators . | . . . . . . . . Repair Stations . | . . . . . . . . Recycling Units 1 | . 1 . . . . . . Tunnel 1 | . 1 . . . . . . Scanalyzers . | . . . . . . . . Garrison Access . | . . . . . . . . Data Cores Recovered 1 | . 1 . . . . . . Used 1 | . 1 . . . . . . Hacking Detections 16 | . 7 . . . 7 2 . Full Trace Events 1 | . . . . . . 1 . Feedback Events . | . . . . . . . . Feedback Blocked . | . . . . . . . . Robot Schematics Acquired . | . . . . . . . . Robots Built . | . . . . . . . . Authchips . | . . . . . . . . Time . | . . . . . . . . Total Robot Build Rating . | . . . . . . . . Part Schematics Acquired . | . . . . . . . . Parts Built . | . . . . . . . . Authchips . | . . . . . . . . Time . | . . . . . . . . Total Part Build Rating . | . . . . . . . . Parts Repaired . | . . . . . . . . Time . | . . . . . . . . Parts Recycled . | . . . . . . . . Recycled Matter . | . . . . . . . . Retrieved Matter . | . . . . . . . . Retrieved Components 17 | . 16 . . . 1 . . Parts Scanalyzed . | . . . . . . . . Part Schematics Acquired . | . . . . . . . . Parts Damaged . | . . . . . . . . Bothacking | -11 -10 -10 -10 -9 -8 -8 -8 ------------ Run | Yrd Mat Min Exi Min Mat Gar Mat Used RIF Installer . | . . . . . . . . Robots Hacked . | . . . . . . . . Non-combat . | . . . . . . . . Combat . | . . . . . . . . Robot Hacks Applied . | . . . . . . . . Relay Couplers Released 20 | . . . . . . 20 . Machine Destruction 20 | . . . . . . 20 . Fabnet Peak Effective % . | . . . . . . . . Robots Rewired 2 | . . . . . . 2 . Allies Hacked . | . . . . . . . . Hacks Repelled . | . . . . . . . . Allies | -11 -10 -10 -10 -9 -8 -8 -8 -------- Run | Yrd Mat Min Exi Min Mat Gar Mat Total Allies 2 | . . . . . . 2 . Largest Group 2 | . . . . . . 2 2 Highest-Rated Group 56 | . . . . . . 56 56 Highest-Rated Ally 31 | . . . . . . 31 31 Initial Warlord ECA Mod 10 | . . . . . . . 10 Total Orders . | . . . . . . . . Ally Attacks 20 | . . . . . . 13 7 Total Damage 355 | . . . . . . 248 107 Kills 7 | . . . . . . 5 2 Allies Corrupted . | . . . . . . . . Allies Melted . | . . . . . . . . Intel | -11 -10 -10 -10 -9 -8 -8 -8 ------- Run | Yrd Mat Min Exi Min Mat Gar Mat Active Infowar (turns) 1581 | 36 43 . . . 1502 . . Structural 1500 | . . . . . 1500 . . Seismic 81 | 36 43 . . . 2 . . Robot Analysis Total . | . . . . . . . . Derelict Logs Recovered 1 | . . 1 . . . . . Drone Launches . | . . . . . . . . Drone Recoveries . | . . . . . . . . Exploration | -11 -10 -10 -10 -9 -8 -8 -8 ------------- Run | Yrd Mat Min Exi Min Mat Gar Mat Turns Passed 6854 | 113 1663 220 330 96 1891 2420 121 Spaces Moved 3411 | 62 817 157 339 101 877 997 61 Core 52 | 20 . . . . . 32 . Treads 2398 | 42 697 . . . 798 800 61 Legs 165 | . . . . . . 165 . Wheels 796 | . 120 157 339 101 79 . . Hover . | . . . . . . . . Flight . | . . . . . . . . Fastest Speed 50 | 50 95 95 95 95 95 160 160 Average Speed 152 | 137 152 95 95 95 155 182 160 Slowest Speed 600 | 160 240 95 95 95 163 600 160 Overloaded Moves . | . . . . . . . . Propulsion Burnouts . | . . . . . . . . Robots Hopped . | . . . . . . . . Potential Cave-ins . | . . . . . . . . Cave-ins Triggered . | . . . . . . . . Exploration Rate (%) 52 | 4 96 42 69 35 88 81 8 Regions Visited 7 Branch Regions 3 Pre-discovered Areas 4 | . 2 1 1 . . . . Known Exits Taken 3 | . 1 1 . . 1 . . Unknown Exits Taken 3 | 1 . . 1 1 . . . Scrap Searched 4 | . . 3 . 1 . . . Spaces Dug 15 | . . . . . . 15 . Terrain Destroyed 115 | . . 28 . . 1 85 1 Melee . | . . . . . . . . Projectile 2 | . . . . . 1 . 1 AOE 113 | . . 28 . . . 85 . Terrain Rammed . | . . . . . . . . Walls Destroyed . | . . . . . . . . Machines Disabled . | . . . . . . . . Actions | -11 -10 -10 -10 -9 -8 -8 -8 --------- Run | Yrd Mat Min Exi Min Mat Gar Mat Total 4440 | 86 1063 209 347 100 1187 1368 80 Wait 400 | 4 121 33 . . 120 115 7 Move 3404 | 61 816 156 338 100 876 996 61 Hop . | . . . . . . . . Pick Up 72 | 10 14 3 8 . 25 7 5 Fast Attach 32 | . 3 . . . 8 21 . Attach 21 | 8 4 . . . 6 3 . Detach 1 | 1 . . . . . . . Swap 40 | . 6 4 . . 15 14 1 Drop 66 | . 10 1 1 . 31 20 3 Fire 327 | 2 89 12 . . 106 115 3 Melee . | . . . . . . . . Ram . | . . . . . . . . Kick . | . . . . . . . . Crush . | . . . . . . . . Escape Stasis 45 | . . . . . . 45 . Rewire 32 | . . . . . . 32 . Trap . | . . . . . . . . Miscellaneous . | . . . . . . . . Route ------- -11/Scrapyard -10/Materials (discovered 5 exits: *Mat x3 / *Min / Sub) -10/Mines (discovered 4 exits: *Mat x2 / *Exi / Sub) -10/Exiles -9/Mines -8/Materials (discovered 4 exits: *Fac x3 / Gar) -8/Garrison (discovered 4 exits: [*Mat x4]) -8/Materials History --------- Turn | Location | Event 23 | -11/Scrapyard | Discovered new exit (range 15) 114 | -11/Scrapyard | Entered Materials 302 | -10/Materials | Build established: Mutant 458 | -10/Materials | Discovered new exit (range 14) 582 | -10/Materials | Discovered new exit (range 12) 858 | -10/Materials | Discovered new exit (range 15) 1493 | -10/Materials | Core integrity fell below 50% 1550 | -10/Materials | Discovered new exit (range 11) 1586 | -10/Materials | Identified exit to Mines 1633 | -10/Materials | Identified exit to Subcaves 1672 | -10/Materials | Learned location of 2 exits from Mines 1699 | -10/Materials | Learned 4 Recycling zone layouts 1725 | -10/Materials | Learned Storage trap positions 1733 | -10/Materials | Learned location of Storage (-9) 1748 | -10/Materials | Learned 4 Recycling zone layouts 1777 | -10/Materials | Entered Mines 1778 | -10/Mines | Identified exit to Materials 1779 | -10/Mines | Identified exit to Exiles 1919 | -10/Mines | Excavation squad dispatched 1919 | -10/Mines | A large section of the Mines collapsed 1937 | -10/Mines | Core integrity fell below 20% 1991 | -10/Mines | Deemed a non-threat by the Exiles lab entrance 1997 | -10/Mines | Entered Exiles 2025 | -10/Exiles | Met 8R-AWN 2039 | -10/Exiles | Met EX-HEX 2093 | -10/Exiles | Met EX-DEC 2108 | -10/Exiles | Learned location of Zion (-6) 2184 | -10/Exiles | Met EX-BIN 2197 | -10/Exiles | Aligned with FarCom system 2198 | -10/Exiles | Given EX-Vault access code 2221 | -10/Exiles | Opened EX-Vault 2227 | -10/Exiles | Found Latent Energy Streamer 2232 | -10/Exiles | Found 0b10 Alert Chip 2240 | -10/Exiles | Found Skeleton Box 2259 | -10/Exiles | Warned to stay clear of 0b10 Research branches 2264 | -10/Exiles | Exiles lab attacked by MAIN.C 2320 | -10/Exiles | Discovered new exit (range 10) 2327 | -10/Exiles | Stole three prototypes: 0b10 Alert Chip, Skeleton Box, Latent Energy Streamer 2327 | -10/Exiles | Entered Mines 2402 | -9/Mines | Discovered new exit (range 11) 2423 | -9/Mines | Entered Materials 2423 | -8/Materials | Evolved 4 slots: Propulsion x1, Utility x2, Weapon x1 2893 | -8/Materials | Discovered new exit (range 8) 2961 | -8/Materials | Build established: Scavenger-Skirmisher 3551 | -8/Materials | Learned location of 1 exit from Extension 3596 | -8/Materials | Learned location of 1 exit from Recycling 3630 | -8/Materials | Identified exit to Factory 3652 | -8/Materials | Learned 4 Lower Caves zone layouts 3669 | -8/Materials | Learned Storage security intel 3670 | -8/Materials | Learned location of 2 exits from Factory 3672 | -8/Materials | Learned 2 Lower Caves zone layouts 3684 | -8/Materials | Learned Factory stockpile data 3706 | -8/Materials | Learned Factory stockpile data 4252 | -8/Materials | Identified exit to Garrison 4314 | -8/Materials | Entered Garrison 4412 | -8/Garrison | Triggered checkpoint 4465 | -8/Garrison | Garrison Relay disabled 4518 | -8/Garrison | Triggered checkpoint 4529 | -8/Garrison | Core integrity fell below 50% 4554 | -8/Garrison | Garrison Relay disabled 4838 | -8/Garrison | Triggered checkpoint 4853 | -8/Garrison | Triggered checkpoint 4972 | -8/Garrison | Triggered checkpoint 5020 | -8/Garrison | Discovered new exit (range 12) 5161 | -8/Garrison | Discovered new exit (range 14) 5180 | -8/Garrison | Build established: Scavenger-Tank 5366 | -8/Garrison | Triggered checkpoint 5433 | -8/Garrison | Lost 3 parts (1p1u1w) 5438 | -8/Garrison | Garrison Relay disabled 5589 | -8/Garrison | Discovered new exit (range 12) 5652 | -8/Garrison | Triggered checkpoint 5658 | -8/Garrison | Triggered checkpoint 5658 | -8/Garrison | Garrison Relay disabled 5890 | -8/Garrison | Build established: Scavenger-Skirmisher 5920 | -8/Garrison | Phase Generator disabled 5969 | -8/Garrison | Garrison Relay disabled 6059 | -8/Garrison | Core integrity fell below 20% 6129 | -8/Garrison | Lost 6 parts (3n1u2w) 6644 | -8/Garrison | Triggered checkpoint 6662 | -8/Garrison | Discovered new exit (range 6) 6734 | -8/Garrison | Entered Materials 6734 | -8/Materials | Accompanied by 2 allies 6855 | -8/Materials | Destroyed by Y-45 Defender with Beam Rifle Last Messages --------------- LOCATION=UNKNOWN GOAL=ESCAPE 06734_ Receiving FarCom transmissions... 06747_ Acquired Prototype Ballistic Gun. 06768_ 3N-9C9(l) destroyed. 06773_ G-47 Trooper destroyed. 06780_ Carbon-fiber Leg melted. 06780_ Hvy. Laser melted. 06780_ G-50 Soldier destroyed. 06783_ U-05 Engineer builds a Wall. 06790_ APO6JI|RQG=TRQAEGYAO:VBR5OWI 06807_ Acquired Imp. Salvage Targeting Computer. 06826_ System corrupted: Matter fused (-10). 06826_ Acquired 10 matter. 06832_ Dropped Lgt. Ion Engine. 06837_ Acquired 10 matter. Map ----- +----------------------------------------------------+ | | | | | | | | | | | | | ?????????????????????????????????????????????????? | | ?????????????????????????????????????????????????? | | ????????????########?????????????????????????????? | | ????????????#!!=!]]#?????????????????????????????? | | ????????????#!= ]]#?????????????????????????????? | | ????????????# ########??????????????????????? | | ############# ## #??????????????????????? | | =[ #??????????????????????? | | = * = !%[ #??????????????????????? | | *%! [% % != #??????????????????????? | | ###+######+########## #??????????????????????? | | # ???????## ##??????????????????????? | | """ # ""??????# #???????????????????????? | | """ # """""????# #???????????????????????? | | """ # """""????# #???????????????????????? | | # """""????# #???????????????????????? | | """ [ # """ ????# #???????????????????????? | | """ # ??????## g ##??????????????????????? | | """ # ??????# u #??????????????????????? | | # ?????# @#??????????????????????? | | #############+#?????# " +??????????????????????? | | ????????????????????# #??????????????????????? | | ????????????????????# #??????????????????????? | | ????????????????????## ##??????????????????????? | | ?????????????????????# #???????????????????????? | | ?????????????????????# #???????????????????????? | | ?????????????????????# #???????????????????????? | | ?????????????????????# #???????????????????????? | | ?????????????????????# ????????????????????????? | | ?????????????????????# ????????????????????????? | | ????????????????????? ????????????????????????? | | ????????????????????? ????????????????????????? | | ???????????????????w? Y ????????????????????????? | | ????????????????????? ?????????????????????????? | | ??????????????????????? ?????????????????????????? | | ?????????????????????????????????????????????????? | | ?????????????????????????????????????????????????? | | ?????????????????????????????????????????????????? | | ?????????????????????????????????????????????????? | | ?????????????????????????????????????????????????? | | ?????????????????????????????????????????????????? | | ?????????????????????????????????????????????????? | | ?????????????????????????????????????????????????? | | ?????????????????????????????????????????????????? | +----------------------------------------------------+ Best States ------------- Heat Dissipation 45 Energy Generation 14 Energy Capacity 280 Matter Stores 300 Matter Capacity 300 Sight Range 16 Terrain Scan Density 10 Armor Coverage 375 Resistance: KI 20 Evasion (%) 50 Targeting Accuracy 8 Recoil Reduction 3 Matter Filtering 30 Offensive Hacking 10 Authchip Count 4 Item Schematics ----------------- None Robot Schematics ------------------ None Fabricated ------------ Nothing Repaired ---------- Nothing Alien Tech Used ----------------- None Achievements -------------- None Challenges ------------ None Game ------ Seed SensorHardenedModule Manual? 0 Play Time 00:38:31 Cumulative 405.0 hours Start 2025.10.19 @ 23:48:14 End 2025.10.20 @ 00:29:38 Sessions 1 Manual Loads 0 Difficulty Rogue Special Mode None Game No. 520 Rogue 520 Adventurer 0 Explorer 0 Win Type - Total 12 Types 6/0/1/2/1/0/2/0/0/0 Lore% 88 Gallery% 84 Achievement% 72 Wizard Run 0 Options --------- Layout 0 ASCII 0 Keyboard 0 Movement Mouse Keybinds 0 Fullscreen 1 Font 24/Tamsyn Map View 76x50 Zoom Use 0% Tactical HUD 1 Map Filters NONE Filters NONE Steam 1 RUN: 6a2292e1-c5e9-45f0-ac4f-8fe9c036b140